bitfinex-derivatives/quotes_BTCF0:USTF0_20260214
["timestamp","ask_amount","ask_price","bid_price","bid_amount"]
[1771091862385,0.028667,69796.0,69791.0,0.028694]
[1771091862988,0.014333,69796.0,69791.0,0.028694]
[1771091863681,0.014333,69796.0,69792.0,0.014334]
[1771091867587,0.028667,69796.0,69791.0,0.028694]
[1771091868186,0.014333,69796.0,69791.0,0.028694]
[1771091873394,0.028667,69796.0,69791.0,0.028694]
[1771091873593,0.014333,69796.0,69791.0,0.028694]
[1771091874288,0.014333,69796.0,69792.0,0.014334]
[1771091875292,0.014333,69796.0,69791.0,0.028694]
[1771091875494,0.014334,69795.0,69791.0,0.028694]
[1771091880798,0.014334,69795.0,69791.0,0.01436]
[1771091880992,0.014334,69793.0,69791.0,0.01436]
[1771091881193,0.014334,69792.0,69791.0,0.01436]
[1771091881394,0.014334,69792.0,69791.0,0.000138]
[1771091882097,0.014334,69793.0,69791.0,0.000138]
[1771091883490,0.014333,69797.0,69792.0,0.014334]
[1771091884292,0.014333,69797.0,69792.0,0.028668]
[1771091886293,0.014333,69797.0,69792.0,0.014334]
[1771091887198,0.014333,69797.0,69792.0,0.028668]
[1771091887700,0.014333,69797.0,69792.0,0.014334]
[1771091888300,0.014334,69795.0,69791.0,0.014472]
[1771091888494,0.014333,69796.0,69791.0,0.014472]
[1771091888895,0.028667,69796.0,69791.0,0.014472]
[1771091889401,0.014333,69796.0,69791.0,0.014472]
[1771091890201,0.014334,69795.0,69791.0,0.014472]
[1771091892301,0.014333,69796.0,69791.0,0.014472]
[1771091894202,0.014333,69796.0,69791.0,0.028806]
[1771091894502,0.014333,69796.0,69791.0,0.014472]
[1771091895003,0.014333,69797.0,69792.0,0.014334]
[1771091895204,0.028666,69797.0,69792.0,0.014334]
[1771091895601,0.05272329,69812.0,69791.0,0.000138]
[1771091895899,0.014335,69790.0,69784.0,0.014336]
[1771091896097,0.014334,69791.0,69785.0,0.01436]
[1771091896297,0.014334,69791.0,69786.0,0.014335]
[1771091896705,0.014334,69791.0,69785.0,0.028696]
[1771091896897,0.014335,69790.0,69785.0,0.028696]
[1771091897298,0.014335,69789.0,69785.0,0.028696]
[1771091899411,0.014335,69789.0,69785.0,0.01436]
[1771091902106,0.014335,69789.0,69784.0,0.014336]
[1771091902301,0.014335,69789.0,69785.0,0.01436]
[1771091903410,0.014335,69789.0,69785.0,0.028696]
[1771091904711,0.014335,69787.0,69785.0,0.01436]
[1771091905213,0.014336,69785.0,69781.0,0.014336]
[1771091905409,0.014336,69785.0,69782.0,0.01436]
[1771091906607,0.014335,69787.0,69766.0,0.04889172]
[1771091906608,0.05272329,69787.0,69766.0,0.04889172]
[1771091906808,0.014337,69781.0,69776.0,0.014337]
[1771091907010,0.014337,69781.0,69777.0,0.01436]
[1771091908318,0.014337,69781.0,69777.0,0.028697]
[1771091908507,0.028674,69781.0,69777.0,0.01436]
[1771091908712,0.014337,69779.0,69774.0,0.014338]
[1771091908917,0.014337,69779.0,69775.0,0.028698]
[1771091909116,0.014337,69779.0,69775.0,0.014338]
[1771091909318,0.014337,69780.0,69776.0,0.01436]
[1771091911822,0.014337,69777.0,69773.0,0.01436]
[1771091912023,0.014338,69776.0,69773.0,0.01436]
[1771091913122,0.014337,69777.0,69770.0,0.014339]
[1771091913422,0.014338,69776.0,69771.0,0.01436]
[1771091914622,0.014337,69777.0,69772.0,0.014338]
[1771091914823,0.05272329,69753.0,69746.0,0.08975155]
[1771091915119,0.05272329,69753.0,69725.0,0.04889172]
[1771091915120,0.014344,69747.0,69740.0,0.014345]
[1771091915317,0.0144,69747.0,69742.0,0.014344]
[1771091915518,0.0144,69749.0,69746.0,0.014344]
[1771091915821,0.00022196,69750.0,69745.0,0.014344]
[1771091916123,0.0144,69750.0,69746.0,0.014344]
[1771091916820,0.0144,69750.0,69742.0,0.0144]
[1771091917119,0.0144,69750.0,69744.0,0.44692152]
[1771091917517,0.0144,69750.0,69745.0,0.44692152]
[1771091917726,0.0144,69750.0,69742.0,0.0144]
[1771091918731,0.0144,69750.0,69737.0,0.014345]
[1771091918919,0.06712329,69750.0,69735.0,0.14344]
[1771091919126,0.05272329,69749.0,69735.0,0.15784]
[1771091920630,0.0144,69750.0,69738.0,0.014345]
[1771091920831,0.0144,69750.0,69736.0,0.028692]
[1771091921032,0.0144,69750.0,69739.0,0.06323672]
[1771091921428,0.0144,69750.0,69739.0,0.014345]
[1771091921935,0.0144,69750.0,69735.0,0.22477779]
[1771091922126,0.06882681,69750.0,69735.0,0.15784]
[1771091922324,0.05442681,69749.0,69735.0,0.15784]
[1771091922823,0.05442681,69749.0,69735.0,0.60476152]
[1771091923130,0.05442681,69749.0,69735.0,0.46132152]
[1771091925733,0.05442681,69749.0,69735.0,0.44692152]
[1771091926435,0.05442681,69749.0,69734.0,0.0144]
[1771091926935,0.05442681,69749.0,69735.0,0.44692152]
[1771091927333,0.05442681,69749.0,69734.0,0.028746]
[1771091927530,0.05442681,69749.0,69735.0,0.44692152]
[1771091928634,0.05442681,69749.0,69736.0,0.44692152]
[1771091929030,0.05442681,69749.0,69737.0,0.44692152]
[1771091929231,0.05442681,69749.0,69735.0,0.014346]
[1771091929434,0.05442681,69749.0,69736.0,0.44692152]
[1771091929835,0.05442681,69749.0,69735.0,0.014346]
[1771091930031,0.05442681,69749.0,69736.0,0.44692152]
[1771091930231,0.05442681,69749.0,69735.0,0.014346]
[1771091930433,0.0144,69750.0,69737.0,0.44692152]
[1771091930633,0.0144,69750.0,69735.0,0.014346]
[1771091931043,0.0144,69750.0,69736.0,0.44692152]
[1771091931543,0.0144,69750.0,69737.0,0.44692152]
[1771091932240,0.32297516,69749.0,69738.0,0.44692152]
[1771091932546,0.0144,69750.0,69737.0,0.44692152]
[1771091932734,0.37731271,69749.0,69734.0,0.0144]
[1771091933043,0.05433755,69749.0,69737.0,0.44692152]
[1771091933444,0.05433755,69749.0,69734.0,0.028746]
[1771091933646,0.05433755,69749.0,69737.0,0.44692152]
[1771091933940,0.0144,69750.0,69737.0,0.44692152]
[1771091934244,0.32297516,69749.0,69735.0,0.014346]
[1771091934539,0.32297516,69748.0,69738.0,0.44692152]
[1771091934745,0.32297516,69747.0,69735.0,0.014346]
[1771091934942,0.0144,69746.0,69735.0,0.014346]
[1771091935143,0.0144,69746.0,69734.0,0.0144]
[1771091935144,0.0144,69746.0,69738.0,0.44692152]
[1771091935343,0.0144,69746.0,69734.0,0.0144]
[1771091935843,0.0144,69746.0,69734.0,0.028746]
[1771091936035,0.0144,69746.0,69740.0,0.44692152]
[1771091936240,0.0144,69746.0,69734.0,0.028746]
[1771091936737,0.0144,69746.0,69735.0,0.0144]
[1771091937146,0.32297533,69745.0,69735.0,0.0144]
[1771091937338,0.0144,69746.0,69735.0,0.0144]
[1771091937539,0.32297533,69745.0,69735.0,0.0144]
[1771091937740,0.0144,69746.0,69735.0,0.0144]
[1771091937938,0.32297533,69745.0,69735.0,0.0144]
[1771091938143,0.32297533,69744.0,69735.0,0.0144]
[1771091938344,0.0144,69746.0,69735.0,0.028746]
[1771091938646,0.32297533,69745.0,69735.0,0.028746]
[1771091938941,0.0144,69746.0,69745.0,0.014344]
[1771091939142,0.574,69770.0,69743.0,0.014344]
[1771091939143,0.0144,69751.0,69748.0,0.028686]
[1771091939346,0.0144,69754.0,69748.0,0.014343]
[1771091939744,0.0144,69754.0,69748.0,0.028686]
[1771091940047,0.0144,69754.0,69748.0,0.014343]
[1771091940548,0.0144,69754.0,69748.0,0.028686]
[1771091940850,0.0144,69754.0,69748.0,0.014343]
[1771091941841,0.0144,69754.0,69748.0,0.028686]
[1771091942041,0.0144,69754.0,69749.0,0.014343]
[1771091942437,0.14348,69756.0,69746.0,0.00388616]
[1771091942640,0.15788,69756.0,69751.0,0.014343]
[1771091942848,0.10309468,69756.0,69754.0,0.014342]
[1771091943146,0.10309468,69756.0,69752.0,0.014342]
[1771091943147,0.0144,69758.0,69749.0,0.0144]
[1771091943346,0.0144,69758.0,69752.0,0.014342]
[1771091943536,0.0144,69758.0,69753.0,0.014342]
[1771091944346,0.0144,69758.0,69752.0,0.014342]
[1771091945044,0.0144,69758.0,69753.0,0.014342]
[1771091945254,0.14348,69763.0,69757.0,0.014341]
[1771091945551,0.0144,69762.0,69757.0,0.014341]
[1771091946050,0.0144,69762.0,69755.0,0.014342]
[1771091946244,0.0144,69762.0,69756.0,0.014341]
[1771091947356,0.4617324,69775.0,69756.0,0.014341]
[1771091947357,0.14348,69770.0,69766.0,0.014339]
[1771091947646,0.0144,69769.0,69763.0,0.01434]
[1771091947852,0.14348,69770.0,69763.0,0.0144]
[1771091948054,0.0094,69772.0,69769.0,0.014339]
[1771091948249,0.0144,69777.0,69768.0,0.0144]
[1771091948452,0.07217483,69777.0,69768.0,0.0144]
[1771091948648,0.07217483,69777.0,69768.0,0.028739]
[1771091948955,0.0144,69777.0,69768.0,0.0144]
[1771091950354,0.07219878,69777.0,69763.0,0.0144]
[1771091950950,0.05773394,69775.0,69763.0,0.0144]
[1771091951151,0.05773394,69773.0,69763.0,0.0144]
[1771091951352,0.05773394,69771.0,69763.0,0.0144]
[1771091951555,0.32071521,69770.0,69763.0,0.0144]
[1771091951753,0.05773394,69771.0,69763.0,0.0144]
[1771091951952,0.32061766,69770.0,69763.0,0.0144]
[1771091952152,0.05773394,69771.0,69763.0,0.0144]
[1771091962464,0.05773394,69771.0,69761.0,0.0144]
[1771091963063,0.05773394,69771.0,69761.0,0.028741]
[1771091963673,0.05773394,69771.0,69761.0,0.0144]
[1771091963860,0.05773394,69771.0,69760.0,0.014341]
[1771091964060,0.05773394,69771.0,69761.0,0.0144]
[1771091965169,0.05773394,69771.0,69761.0,0.028741]
[1771091966267,0.05773394,69771.0,69762.0,0.01434]
[1771091966467,0.0144,69772.0,69768.0,0.014339]
[1771091966665,0.0144,69772.0,69767.0,0.014339]
[1771091968066,0.0144,69772.0,69768.0,0.014339]
[1771091969674,0.0144,69772.0,69767.0,0.014339]
[1771091975182,0.0144,69772.0,69768.0,0.014339]
[1771091975580,0.0144,69772.0,69766.0,0.014339]
[1771091975779,0.0144,69772.0,69768.0,0.014339]
[1771091976182,0.30182135,69771.0,69768.0,0.014339]
[1771091976487,0.0144,69772.0,69768.0,0.014339]
[1771091976784,0.30189111,69771.0,69768.0,0.014339]
[1771091976985,0.01436,69774.0,69768.0,0.014339]
[1771091977181,0.30193811,69773.0,69768.0,0.014339]
[1771091977485,0.30193811,69772.0,69768.0,0.014339]
[1771091977685,0.30193811,69771.0,69767.0,0.014339]
[1771091977984,0.30193811,69770.0,69768.0,0.014339]
[1771091978184,0.01436,69774.0,69768.0,0.014339]
[1771091978487,2e-07,69773.0,69767.0,0.01436]
[1771091978687,0.01436,69774.0,69771.0,0.014338]
[1771091978887,0.05752657,69793.0,69771.0,0.01937393]
[1771091979188,0.014336,69784.0,69779.0,0.014337]
[1771091979485,0.014336,69785.0,69780.0,0.01436]
[1771091979674,0.014336,69785.0,69780.0,0.028697]
[1771091979873,0.014336,69785.0,69781.0,0.014336]
[1771091987183,0.014336,69786.0,69781.0,0.014336]
[1771091987586,0.01409329,69786.0,69781.0,0.014336]
[1771091988491,0.014336,69785.0,69780.0,0.028697]
[1771091989090,0.014336,69786.0,69780.0,0.028697]
[1771091989781,0.01436,69789.0,69780.0,0.028697]
[1771091989782,0.01436,69789.0,69785.0,0.014336]
[1771091989988,0.01436,69789.0,69788.0,0.014335]
[1771091990489,0.29845024,69789.0,69788.0,0.014335]
[1771091991992,0.28409024,69789.0,69788.0,0.014335]
[1771091992590,0.28409024,69789.0,69786.0,0.014335]
[1771091992788,0.014335,69787.0,69783.0,0.028696]
[1771091992988,0.014335,69788.0,69783.0,0.028696]
[1771091993696,0.014335,69788.0,69783.0,0.043032]
[1771091994297,0.014335,69789.0,69784.0,0.014336]
[1771092001195,0.014335,69788.0,69784.0,0.014336]
[1771092001402,0.07016769,69787.0,69783.0,0.01436]
[1771092001602,0.05583269,69785.0,69778.0,0.14344]
[1771092001788,0.05583269,69785.0,69778.0,0.1578]
[1771092001993,0.01436,69786.0,69781.0,0.014336]
[1771092002190,0.01436,69786.0,69782.0,0.014336]
[1771092002698,0.01436,69786.0,69783.0,0.014336]
[1771092003103,0.01436,69786.0,69780.0,0.014337]
[1771092003104,0.01436,69786.0,69782.0,0.014336]
[1771092003297,0.01436,69786.0,69781.0,0.014336]
[1771092003497,0.028695,69786.0,69779.0,0.014337]
[1771092003705,0.028695,69786.0,69780.0,0.014337]
[1771092003898,0.01436,69786.0,69779.0,0.014337]
[1771092004202,0.014336,69785.0,69780.0,0.014337]
[1771092004502,0.028695,69786.0,69779.0,0.014337]
[1771092004700,0.028695,69786.0,69781.0,0.014336]
[1771092005001,0.028695,69786.0,69779.0,0.014337]
[1771092005302,0.028695,69786.0,69778.0,0.1578]
[1771092005605,0.028695,69786.0,69779.0,0.014337]
[1771092006298,0.014336,69785.0,69780.0,0.014337]
[1771092006493,0.014336,69783.0,69778.0,0.172137]
[1771092006694,0.05583269,69767.0,69746.0,0.05766424]
[1771092006900,0.42675237,69810.0,69720.0,0.14400195]
[1771092006901,0.05583269,69761.0,69749.0,0.014343]
[1771092007098,0.014342,69757.0,69752.0,0.014342]
[1771092007402,0.01436,69758.0,69752.0,0.014342]
[1771092007792,0.014341,69757.0,69752.0,0.014342]
[1771092008605,0.014341,69757.0,69751.0,0.014342]
[1771092009102,0.014341,69757.0,69753.0,0.014342]
[1771092009404,0.01436,69758.0,69757.0,0.014341]
[1771092009701,0.14344,69763.0,69762.0,0.01434]
[1771092010203,0.14344,69763.0,69760.0,0.014341]
[1771092010405,0.14344,69763.0,69761.0,0.014341]
[1771092010703,0.0144,69762.0,69761.0,0.014341]
[1771092011003,0.0144,69762.0,69758.0,0.014341]
[1771092011004,0.14344,69763.0,69759.0,0.014341]
[1771092011299,0.14344,69763.0,69760.0,0.014341]
[1771092011802,0.14344,69763.0,69761.0,0.014341]
[1771092012101,0.14344,69763.0,69760.0,0.014341]
[1771092012303,0.14344,69763.0,69761.0,0.01434]
[1771092012601,0.14344,69763.0,69760.0,0.014341]
[1771092012902,0.14344,69763.0,69761.0,0.014341]
[1771092013507,0.14344,69763.0,69760.0,0.014341]
[1771092014402,0.14344,69763.0,69759.0,0.014341]
[1771092014603,0.0144,69763.0,69760.0,0.014341]
[1771092014793,0.0144,69763.0,69761.0,0.014341]
[1771092014993,0.0144,69763.0,69760.0,0.014341]
[1771092017400,0.02874,69763.0,69758.0,0.014341]
[1771092017998,0.02874,69763.0,69758.0,0.028682]
[1771092018607,0.02874,69763.0,69758.0,0.014341]
[1771092018999,0.02874,69763.0,69756.0,0.014341]
[1771092019607,0.04308,69763.0,69756.0,0.014341]
[1771092019907,0.02874,69763.0,69756.0,0.028682]
[1771092020507,0.01434,69762.0,69757.0,0.014341]
[1771092021909,0.01434,69762.0,69758.0,0.014341]
[1771092023512,0.014341,69757.0,69756.0,0.0144]
[1771092023711,0.014342,69756.0,69752.0,0.014342]
[1771092023914,0.014342,69756.0,69753.0,0.0144]
[1771092024214,0.014342,69755.0,69748.0,0.014343]
[1771092024403,0.014342,69754.0,69749.0,0.172223]
[1771092024808,0.014341,69758.0,69750.0,0.014343]
[1771092025009,0.014342,69755.0,69750.0,0.014343]
[1771092025709,0.014342,69755.0,69750.0,0.028686]
[1771092025912,0.014342,69755.0,69750.0,0.014343]
[1771092026105,0.028684,69755.0,69750.0,0.014343]
[1771092026306,0.014342,69755.0,69750.0,0.014343]
[1771092027209,0.014342,69755.0,69750.0,0.028686]
[1771092027405,0.014342,69755.0,69750.0,0.014343]
[1771092028916,0.014342,69755.0,69751.0,0.014343]
[1771092029109,0.014342,69755.0,69752.0,0.0144]
[1771092029508,0.028684,69755.0,69752.0,0.0144]
[1771092029712,0.014342,69754.0,69752.0,0.0144]
[1771092030108,0.014342,69754.0,69752.0,0.01436]
[1771092030913,0.014343,69750.0,69749.0,0.14348]
[1771092031113,0.014343,69750.0,69749.0,0.15784]
[1771092031315,0.014343,69752.0,69749.0,0.01436]
[1771092032716,0.014343,69750.0,69749.0,0.01436]
[1771092032917,0.014343,69750.0,69749.0,0.0119054]
[1771092033212,0.014343,69752.0,69749.0,0.0119054]
[1771092033910,0.014343,69750.0,69749.0,0.0119054]
[1771092034414,0.014343,69750.0,69745.0,0.014344]
[1771092034717,0.014343,69752.0,69746.0,0.01436]
[1771092034909,0.071715,69752.0,69746.0,0.01436]
[1771092035216,0.014343,69750.0,69746.0,0.01436]
[1771092038120,0.028685,69751.0,69746.0,0.028704]
[1771092038616,0.014342,69751.0,69747.0,0.01436]
[1771092038919,0.014343,69750.0,69747.0,0.01436]
[1771092039313,0.028685,69751.0,69747.0,0.01436]
[1771092040118,0.014343,69749.0,69747.0,0.01436]
[1771092040417,0.014343,69749.0,69748.0,0.01436]
[1771092040621,0.071715,69749.0,69748.0,0.01436]
[1771092041820,0.057372,69749.0,69748.0,0.01436]
[1771092047721,0.071715,69749.0,69748.0,0.01436]
[1771092048929,0.014343,69748.0,69747.0,0.01436]
[1771092049128,0.071715,69748.0,69747.0,0.01436]
[1771092049828,0.014343,69747.0,69744.0,0.01436]
[1771092050031,0.014344,69746.0,69744.0,0.01436]
[1771092051339,0.071715,69747.0,69744.0,0.01436]
[1771092054441,0.057372,69747.0,69744.0,0.01436]
[1771092054742,0.071716,69747.0,69744.0,0.01436]
[1771092054943,0.071714,69747.0,69744.0,0.01436]
[1771092055144,0.086058,69747.0,69744.0,0.01436]
[1771092055347,0.014344,69746.0,69744.0,0.01436]
[1771092056239,0.086058,69747.0,69744.0,0.01436]
[1771092056440,0.014344,69746.0,69744.0,0.01436]
[1771092056743,0.071716,69746.0,69744.0,0.01436]
[1771092058646,0.057372,69746.0,69744.0,0.01436]
[1771092060345,0.071716,69746.0,69744.0,0.01436]
[1771092060544,0.014344,69746.0,69744.0,0.01436]
[1771092060742,0.014344,69743.0,69727.0,0.07591848]
[1771092060945,0.014345,69742.0,69732.0,0.014346]
[1771092061141,0.014345,69741.0,69734.0,0.014346]
[1771092061338,0.014346,69736.0,69725.0,0.014348]
[1771092061648,0.014347,69733.0,69726.0,0.01436]
[1771092061846,0.014347,69732.0,69726.0,0.01436]
[1771092062341,0.071719,69732.0,69726.0,0.01436]
[1771092062543,0.057372,69732.0,69726.0,0.028708]
[1771092063654,0.057372,69731.0,69726.0,0.028708]
[1771092063945,0.057372,69732.0,69726.0,0.028708]
[1771092064145,0.071719,69732.0,69726.0,0.01436]
[1771092064336,0.057372,69731.0,69726.0,0.01436]
[1771092065350,0.057372,69731.0,69726.0,0.028708]
[1771092066251,0.01436,69733.0,69726.0,0.028708]
[1771092066447,0.057372,69732.0,69726.0,0.028708]
[1771092067547,0.057372,69731.0,69726.0,0.028708]
[1771092067748,0.057372,69732.0,69726.0,0.028708]
[1771092068343,0.01436,69733.0,69726.0,0.028708]
[1771092068344,0.071714,69731.0,69726.0,0.028708]
[1771092068544,0.014342,69731.0,69726.0,0.028708]
[1771092069542,0.014342,69731.0,69727.0,0.014348]
[1771092070745,0.071714,69731.0,69727.0,0.014348]
[1771092071645,0.77133707,69772.0,69727.0,0.014348]
[1771092071646,0.014343,69748.0,69735.0,0.014346]
[1771092071841,0.014343,69751.0,69743.0,0.014344]
[1771092072048,0.014343,69749.0,69741.0,0.014345]
[1771092072249,0.014343,69749.0,69741.0,0.02869]
[1771092072450,0.014343,69749.0,69741.0,0.014345]
[1771092072756,0.028686,69749.0,69741.0,0.014345]
[1771092073555,0.014343,69747.0,69740.0,0.014345]
[1771092073854,0.028743,69747.0,69739.0,0.014345]
[1771092074855,0.028743,69747.0,69739.0,0.02869]
[1771092075154,0.0144,69747.0,69740.0,0.014345]
[1771092076356,0.014344,69746.0,69738.0,0.0144]
[1771092077559,0.028744,69747.0,69739.0,0.014345]
[1771092080363,0.014344,69745.0,69738.0,0.0144]
[1771092080558,0.014344,69744.0,69738.0,0.0144]
[1771092081360,0.014344,69745.0,69738.0,0.0144]
[1771092082965,0.014344,69745.0,69738.0,0.028745]
[1771092084366,0.014344,69746.0,69738.0,0.028745]
[1771092084564,0.014344,69744.0,69738.0,0.0144]
[1771092084765,0.014345,69742.0,69735.0,0.0144]
[1771092085563,0.0144,69744.0,69735.0,0.028746]
[1771092085564,0.014344,69743.0,69735.0,0.028746]
[1771092086659,0.043088,69744.0,69736.0,0.014346]
[1771092087665,0.014344,69743.0,69736.0,0.014346]
[1771092088060,0.014344,69743.0,69735.0,0.0144]
[1771092088061,0.014345,69742.0,69735.0,0.028746]
[1771092088357,0.014344,69743.0,69735.0,0.043092]
[1771092089164,0.028688,69743.0,69735.0,0.028746]
[1771092089566,0.014345,69742.0,69735.0,0.028746]
[1771092089755,0.014347,69733.0,69728.0,0.0144]
[1771092089960,0.014347,69731.0,69727.0,0.0144]
[1771092090364,0.014348,69727.0,69723.0,0.14352]
[1771092090664,0.014348,69727.0,69724.0,0.0144]
[1771092090864,0.014348,69726.0,69724.0,0.0144]
[1771092091068,0.014348,69726.0,69723.0,0.14352]
[1771092091467,0.014348,69727.0,69723.0,0.14352]
[1771092092065,0.014347,69728.0,69723.0,0.14352]
[1771092092965,0.014348,69727.0,69723.0,0.14352]
[1771092093566,0.014348,69727.0,69721.0,0.014349]
[1771092093771,0.014348,69726.0,69719.0,0.0144]
[1771092094370,0.014348,69726.0,69719.0,0.028749]
[1771092095570,0.014348,69726.0,69719.0,0.0144]
[1771092096270,0.0144,69729.0,69721.0,0.014349]
[1771092096474,0.0144,69729.0,69724.0,0.014348]
[1771092096974,0.0144,69729.0,69726.0,0.014348]
[1771092097177,0.0144,69729.0,69725.0,0.014348]
[1771092098277,0.0144,69729.0,69724.0,0.014348]
[1771092099279,0.0144,69729.0,69723.0,0.014348]
[1771092099780,0.028747,69729.0,69722.0,0.014349]
[1771092100579,0.0144,69729.0,69723.0,0.014348]
[1771092101475,0.028747,69729.0,69722.0,0.014349]
[1771092101678,0.0144,69729.0,69722.0,0.014349]
[1771092101978,0.0144,69729.0,69723.0,0.014348]
[1771092103176,0.014348,69727.0,69719.0,0.0144]
[1771092103382,0.014348,69725.0,69719.0,0.0144]
[1771092103776,0.014348,69726.0,69719.0,0.028749]
[1771092103975,0.014348,69727.0,69719.0,0.028749]
[1771092104177,0.0144,69729.0,69722.0,0.014348]
[1771092105182,0.028747,69729.0,69722.0,0.014348]
[1771092107388,0.014347,69728.0,69720.0,0.014349]
[1771092107583,0.014347,69728.0,69720.0,0.028698]
[1771092107983,0.014347,69728.0,69721.0,0.014349]
[1771092108686,0.014347,69728.0,69719.0,0.028749]
[1771092108887,0.014348,69727.0,69719.0,0.028749]
[1771092109091,0.0144,69726.0,69719.0,0.028749]
[1771092109283,0.0144,69726.0,69720.0,0.014349]
[1771092109484,0.0144,69726.0,69720.0,0.028698]
[1771092110090,0.0144,69726.0,69720.0,0.014349]
[1771092110491,0.0144,69726.0,69721.0,0.014349]
[1771092111488,0.0144,69726.0,69720.0,0.014349]
[1771092112588,0.014349,69722.0,69714.0,0.14352]
[1771092112789,0.014348,69725.0,69714.0,0.17227]
[1771092112790,0.0144,69723.0,69714.0,0.17227]
[1771092113093,0.014349,69721.0,69714.0,0.17227]
[1771092114794,0.014349,69722.0,69714.0,0.17227]
[1771092115990,0.014349,69722.0,69715.0,0.01435]
[1771092117294,0.014349,69722.0,69714.0,0.17227]
[1771092117591,0.014349,69721.0,69714.0,0.15792]
[1771092117792,0.014349,69721.0,69714.0,0.17227]
[1771092117993,0.014349,69722.0,69714.0,0.17227]
[1771092118790,0.014349,69722.0,69715.0,0.01435]
[1771092119193,0.028748,69723.0,69715.0,0.01435]
[1771092119394,0.0144,69723.0,69718.0,0.014349]
[1771092119701,0.0144,69723.0,69717.0,0.01435]
[1771092119896,0.0144,69723.0,69714.0,0.15792]
[1771092120102,0.01435,69718.0,69712.0,0.00016303]
[1771092120298,0.01435,69717.0,69712.0,0.00016303]
[1771092121205,0.01435,69718.0,69708.0,0.0144]
[1771092121503,0.01435,69718.0,69711.0,0.014351]
[1771092121906,0.0144,69719.0,69713.0,0.01435]
[1771092122105,0.00012304,69718.0,69714.0,0.01435]
[1771092122308,0.00012304,69718.0,69716.0,0.01435]
[1771092122508,0.00012304,69718.0,69714.0,0.01435]
[1771092122509,0.0144,69721.0,69719.0,0.014349]
[1771092122706,0.028749,69721.0,69715.0,0.01435]
[1771092122909,0.0144,69721.0,69715.0,0.01435]
[1771092123203,0.0144,69721.0,69716.0,0.01435]
[1771092124000,0.0144,69721.0,69716.0,0.0287]
[1771092125004,0.0144,69721.0,69716.0,0.01435]
[1771092125204,0.0144,69721.0,69716.0,0.0287]
[1771092125402,0.0144,69721.0,69717.0,0.01435]
[1771092125606,0.014351,69713.0,69712.0,0.0144]
[1771092125903,0.014351,69713.0,69708.0,0.0144]
[1771092127307,0.0144,69716.0,69708.0,0.0144]
[1771092127501,0.18219986,69729.0,69708.0,0.0144]
[1771092127502,0.157868,69725.0,69718.0,0.014349]
[1771092127808,0.29429933,69724.0,69718.0,0.014349]
[1771092128009,0.27989933,69723.0,69718.0,0.014349]
[1771092128208,0.0144,69724.0,69718.0,0.014349]
[1771092128409,0.0144,69724.0,69719.0,0.014349]
[1771092128909,0.0144,69724.0,69720.0,0.014349]
[1771092129402,0.0144,69723.0,69717.0,0.01435]
[1771092129608,0.14352,69725.0,69724.0,0.014348]
[1771092129806,0.14356,69732.0,69731.0,0.014347]
[1771092130008,0.37336698,69732.0,69730.0,0.014347]
[1771092130208,0.09437838,69732.0,69730.0,0.028694]
[1771092130408,0.09437838,69732.0,69728.0,0.014347]
[1771092130605,0.09437838,69732.0,69730.0,0.014347]
[1771092130799,0.09437838,69732.0,69723.0,0.014348]
[1771092130800,0.09437838,69732.0,69731.0,0.014347]
[1771092131003,0.09437838,69732.0,69729.0,0.014347]
[1771092131514,0.09437838,69732.0,69728.0,0.014347]
[1771092131811,0.09437838,69732.0,69729.0,0.014347]
[1771092132612,0.09437838,69732.0,69730.0,0.014347]
[1771092132914,0.09437838,69732.0,69731.0,0.014347]
[1771092133114,0.0144,69732.0,69731.0,0.014347]
[1771092133518,0.14356,69735.0,69733.0,0.014346]
[1771092133815,0.14352,69738.0,69734.0,0.014346]
[1771092134006,0.29331205,69737.0,69735.0,0.014346]
[1771092134207,0.27891205,69736.0,69733.0,0.014346]
[1771092134411,0.0144,69737.0,69733.0,0.014346]
[1771092134611,0.2789562,69736.0,69733.0,0.014346]
[1771092134812,0.0144,69737.0,69733.0,0.014346]
[1771092135106,0.0144,69737.0,69735.0,0.014346]
[1771092135309,0.0144,69737.0,69731.0,0.014347]
[1771092135310,0.14352,69747.0,69740.0,0.014345]
[1771092135507,0.30496239,69746.0,69739.0,0.014345]
[1771092135809,0.014344,69747.0,69741.0,0.014345]
[1771092136008,0.014344,69747.0,69735.0,0.0144]
[1771092136009,0.06100953,69764.0,69746.0,0.014344]
[1771092136208,0.014341,69761.0,69754.0,0.014342]
[1771092136412,0.014341,69760.0,69753.0,0.014342]
[1771092136614,0.028682,69760.0,69753.0,0.014342]
[1771092136808,0.014341,69761.0,69754.0,0.014342]
[1771092137108,0.0144,69760.0,69755.0,0.014342]
[1771092137304,0.0144,69759.0,69756.0,0.014342]
[1771092137509,0.0144,69759.0,69755.0,0.014342]
[1771092138307,0.0144,69759.0,69754.0,0.014342]
[1771092139011,0.0144,69759.0,69755.0,0.014342]
[1771092139213,0.0144,69759.0,69756.0,0.014342]
[1771092139407,0.0144,69759.0,69755.0,0.014342]
[1771092139607,0.0144,69759.0,69756.0,0.014342]
[1771092139909,0.0144,69759.0,69755.0,0.014342]
[1771092140108,0.0144,69759.0,69753.0,0.014342]
[1771092141411,0.0144,69759.0,69753.0,0.028684]
[1771092141610,0.0144,69759.0,69754.0,0.014342]
[1771092142714,0.0144,69759.0,69755.0,0.014342]
[1771092143417,0.014346,69736.0,69729.0,0.014347]
[1771092143715,0.014346,69736.0,69730.0,0.0144]
[1771092143913,0.014346,69737.0,69730.0,0.0144]
[1771092144119,0.014345,69739.0,69731.0,0.014347]